Cogmind - Beta 14 @@@ ROGUE MODE // 2025.03.28 @ 13:54:48 Player: rinsethewax Result: Destroyed by G-34 Mercenary with Small Laser Performance ------------- Evolutions (1) 500 Regions Visited (3) 600 Robots Destroyed (26) 130 Value Destroyed (806) 806 Prototype IDs (1) 20 Alien Tech Used (0) 0 Bonus (58) 58 TOTAL SCORE: 2114 Bonus ------- High Alert Combat Kills 58 Cogmind --------- Core Integrity 0/400 Matter 287/300 Energy 265/265 System Corruption 0% Temperature Cool (24) Movement Walking (260) Ox2 Location -9/Materials Parts ------- > --- POWER (2) -------- Improved Ion Engine > --- PROPULSION (2) --- Aluminum Leg > --- UTILITY (3) ------ Small Storage Unit Sensor Array Light Armor Plating > --- WEAPON (2) ------- Heavy Assault Rifle Katana > --- INVENTORY (8) ---- Ion Engine Improved Heat Sink Power Shielding Particle Gun Particle Gun Improved Light Cannon Peak State ------------ > --- POWER ------------ Light Nuclear Core Light Nuclear Core > --- PROPULSION ------- VSS Leg VSS Leg > --- UTILITY ---------- Improved Heat Sink Small Storage Unit Power Shielding > --- WEAPON ----------- Particle Gun Katana > --- INVENTORY -------- Aluminum Leg Aluminum Leg Particle Gun Light Assault Rifle Light Assault Rifle [Rating: 22] Favorites ----------- Power Ion Engine Engine Ion Engine Power Core Light Nuclear Core Propulsion Aluminum Leg Leg Aluminum Leg Utility Power Shielding Device Sensor Array Storage Small Storage Unit Protection Power Shielding Weapon Light Assault Rifle Energy Gun Particle Gun Ballistic Gun Light Assault Rifle Ballistic Cannon Improved Light Cannon Slashing Weapon Katana Build | -11 -10 -10 -9 ------- Run | Yrd Mat Min Mat Slots Evolved 2 | . . . 2 Power 1 | . . . 1 Propulsion . | . . . . Utility 1 | . . . 1 Weapon . | . . . . Parts Attached 33 | 4 5 5 19 Power 5 | 1 . . 4 Engine 3 | 1 . . 2 Core 2 | . . . 2 Reactor . | . . . . Propulsion 11 | 2 2 2 5 Treads . | . . . . Leg 11 | 2 2 2 5 Wheel . | . . . . Hover . | . . . . Flight . | . . . . Utility 7 | . 2 2 3 Device 3 | . . 2 1 Storage 2 | . 1 . 1 Processor . | . . . . Hackware . | . . . . Protection 2 | . 1 . 1 Artifact . | . . . . Weapon 10 | 1 1 1 7 Energy Gun 4 | . . 1 3 Energy Cannon . | . . . . Ballistic Gun 3 | 1 1 . 1 Ballistic Cannon 1 | . . . 1 Launcher . | . . . . Special Weapon . | . . . . Impact Weapon . | . . . . Slashing Weapon 2 | . . . 2 Piercing Weapon . | . . . . Special Melee Weapon . | . . . . Unidentified Prototypes 1 | . . . 1 Parts Lost 10 | . . . 10 Power 2 | . . . 2 Propulsion 4 | . . . 4 Utility 1 | . . . 1 Weapon 3 | . . . 3 Highest Loss Streak 5 | . . . 5 To Critical Strikes . | . . . . Average Slot Usage (%) 87 | . 73 100 85 Engine 8 | . 14 14 4 Core 3 | . . . 6 Leg 23 | . 28 28 20 Device 9 | . . 12 10 Storage 6 | . 3 1 10 Protection 10 | . 3 14 11 Energy Gun 7 | . . 12 7 Ballistic Gun 10 | . 22 15 5 Ballistic Cannon 1 | . . . 2 Slashing Weapon 3 | . . . 7 Peak Build Rating 22 | 4 7 10 22 Average Rating 11 | 3 5 8 14 On Entrance 5 | . 4 7 10 Naked Turns . | . . . . Heaviest Build 23 | 6 13 13 23 Greatest Support 24 | 20 20 20 24 Greatest Overweight (x) 4 | . . . 4 Average Overweight (x) . | . . . . Largest Inventory Capacity 8 | 5 8 8 8 Average Capacity 6 | 5 5 5 7 Most Carried 7 | 4 3 5 7 Average Carried 3 | 1 1 2 5 Final Capacity 8 | 5 8 5 8 Final Carried 6 | 2 2 3 6 Class Distribution -------------------- 53% | Mutant 46% | Scavenger-Mutant Dominant Class ---------------- Mutant | -10/Materials Scavenger-Mutant | -10/Mines Mutant | -9/Materials Resources | -11 -10 -10 -9 ----------- Run | Yrd Mat Min Mat Matter Collected 646 | 191 131 56 268 Remotely . | . . . . Salvage Created 937 | . 134 101 702 Parts 50 | . 9 6 35 Haulers Intercepted . | . . . . Recyclers Shooed . | . . . . Parts Field Recycled . | . . . . Retrieved Matter . | . . . . Parts Self-Destructed . | . . . . Prevented . | . . . . Kills | -11 -10 -10 -9 ------- Run | Yrd Mat Min Mat Combat Hostiles Destroyed 24 | . 3 2 19 Guns 17 | . 3 2 12 Cannons 7 | . . . 7 Classes Destroyed 5 | . 1 . 4 Worker 1 | . . . 1 Watcher 1 | . . . 1 Swarmer 6 | . . . 6 Grunt 13 | . 3 2 8 Sentry 5 | . . . 5 Best Kill Streak 8 | . 2 1 8 Combat Bots Only 6 | . 2 1 6 Max Kills in Single Turn 2 | . 1 1 2 Gunslinging . | . . . . Exploded . | . . . . Melee . | . . . . Uniques/NPCs Destroyed . | . . . . Combat | -11 -10 -10 -9 -------- Run | Yrd Mat Min Mat Hostile Shots Fired 229 | . 33 14 182 Missed 55 | . 9 5 41 Damage Taken 2142 | . 323 129 1690 Core 471 | . 36 31 404 Absorbed by Shields . | . . . . Redirected to Shielding 43 | . . 4 39 Core Remaining (%) 86 | 100 . 73 . Volleys Fired 96 | . 16 10 70 Largest 2 | . 2 2 2 Hottest 130 | . 40 40 130 Shots Fired 148 | . 32 20 96 Gun 134 | . 32 20 82 Cannon 14 | . . . 14 Launcher . | . . . . Special . | . . . . Kinetic 86 | . 32 20 34 Thermal 55 | . . . 55 Explosive . | . . . . Electromagnetic 7 | . . . 7 Robot Hit Streak 14 | . 8 4 14 Robot Miss Streak 5 | . 1 1 5 Penetration Max . | . . . . Secondary Targets 3 | . 1 1 1 Max Gunslinging Chain 1 | . 1 1 1 Shots Hit Robots 103 | . 23 15 65 Core Hits 44 | . 9 6 29 Critical Kills . | . . . . Critical Parts Destroyed . | . . . . Critical Strikes 12 | . . . 12 Burn 12 | . . . 12 Melee Attacks . | . . . . Impact . | . . . . Slashing . | . . . . Piercing . | . . . . Sneak Attacks . | . . . . Combat Hostiles . | . . . . Follow-up Attacks . | . . . . Damage Inflicted 1473 | . 180 134 1159 Guns 1254 | . 180 131 943 Cannons 216 | . . . 216 Explosions . | . . . . Melee . | . . . . Ramming 3 | . . 3 . Kinetic 746 | . 180 131 435 Thermal 653 | . . . 653 Explosive . | . . . . Electromagnetic 71 | . . . 71 Impact . | . . . . Slashing . | . . . . Piercing . | . . . . Highest Corruption . | . . . . Average Corruption . | . . . . Corruption Purged . | . . . . Corruption Blocked . | . . . . Overload Shots . | . . . . Overflow Damage 2 | . . . 2 Projectiles 2 | . . . 2 Explosions . | . . . . Melee . | . . . . Knockbacks 2 | . . . 2 Impact . | . . . . Kinetic 2 | . . . 2 Secondary . | . . . . Self-Inflicted Damage . | . . . . Shots . | . . . . Rammed . | . . . . Targets Rammed 1 | . . 1 . Kicked 1 | . . 1 . Crushed . | . . . . Highest Temperature 290 | . 47 36 290 Average Temperature 66 | . 24 16 82 Received Heat Transfer 882 | . 180 96 606 Effects 2 | . . . 2 Interference 2 | . . . 2 Siege Activations . | . . . . Robots Corrupted . | . . . . Combat Hostiles . | . . . . Parts Fried . | . . . . Impact Corruptions . | . . . . Robots Melted . | . . . . Combat Hostiles . | . . . . Parts Melted 7 | . . . 7 Heat Transferred 2331 | . . . 2331 Parts Sabotaged . | . . . . Parts Stolen . | . . . . Parts Stripped . | . . . . Power Chain Reactions . | . . . . Alert | -11 -10 -10 -9 ------- Run | Yrd Mat Min Mat Peak Influence 584 | . 70 77 584 Initial 29 | . . 27 29 Average 200 | . 25 74 328 Maximum Alert Level 2 | . . . 2 Low Security (%) 58 | 100 100 100 22 Level 1 18 | . . . 34 Level 2 23 | . . . 43 Level 3 . | . . . . Level 4 . | . . . . Level 5 . | . . . . High Security . | . . . . Max Security . | . . . . Squads Dispatched 7 | . 2 . 5 Investigation 3 | . . . 3 Extermination . | . . . . Reinforcement 4 | . 2 . 2 Assault . | . . . . Garrison . | . . . . Intercept . | . . . . Searches Triggered . | . . . . Construction Impeded . | . . . . Haulers Reinforced . | . . . . Active Scanning Responses . | . . . . Cargo Convoy Interrupts . | . . . . Stealth | -11 -10 -10 -9 --------- Run | Yrd Mat Min Mat Distress Signals 3 | . 1 . 2 Communications Jammed . | . . . . Distress Signals . | . . . . Times Spotted 43 | . 6 2 35 Peak Tracking Total 9 | . 3 2 9 Tactical Retreats 5 | . . . 5 Traps | -11 -10 -10 -9 ------- Run | Yrd Mat Min Mat Traps Triggered 1 | . . . 1 Indirectly . | . . . . Trap Hack Attempts . | . . . . Triggered . | . . . . Disarmed . | . . . . Reprogrammed . | . . . . Reused . | . . . . Traps Extracted . | . . . . Installed . | . . . . Triggered . | . . . . Machines | -11 -10 -10 -9 ---------- Run | Yrd Mat Min Mat Machines Disabled 1 | . . . 1 Max in Single Turn 1 | . . . 1 Machines Repaired . | . . . . Machines Dismantled . | . . . . Machines Sabotaged . | . . . . Overloaded Fab Kills . | . . . . Hacking | -11 -10 -10 -9 --------- Run | Yrd Mat Min Mat Machines Accessed 3 | . . . 3 Terminals 2 | . . . 2 Fabricators . | . . . . Repair Stations . | . . . . Recycling Units 1 | . . . 1 Scanalyzers . | . . . . Garrison Access . | . . . . Total Hacks 14 | . . . 14 Successful 10 | . . . 10 Failed 4 | . . . 4 Catastrophic . | . . . . Database Lockouts . | . . . . Manual 2 | . . . 2 Terminals 10 | . . . 10 Fabricators . | . . . . Repair Stations . | . . . . Recycling Units 4 | . . . 4 Scanalyzers . | . . . . Garrison Access . | . . . . Terminal Hacks 6 | . . . 6 Record 4 | . . . 4 Emergency Access Points 1 | . . . 1 Zone Layout 1 | . . . 1 Fabricator Hacks . | . . . . Repair Station Hacks . | . . . . Recycling Unit Hacks 4 | . . . 4 Recycle Component 2 | . . . 2 Process 1 | . . . 1 Retrieve Components 1 | . . . 1 Scanalyzer . | . . . . Garrison Access Hacks . | . . . . Unauthorized Hacks . | . . . . Terminals . | . . . . Fabricators . | . . . . Repair Stations . | . . . . Recycling Units . | . . . . Scanalyzers . | . . . . Garrison Access . | . . . . Data Cores Recovered . | . . . . Used . | . . . . Hacking Detections 3 | . . . 3 Full Trace Events 2 | . . . 2 Feedback Events . | . . . . Feedback Blocked . | . . . . Robot Schematics Acquired . | . . . . Robots Built . | . . . . Authchips . | . . . . Time . | . . . . Total Robot Build Rating . | . . . . Part Schematics Acquired . | . . . . Parts Built . | . . . . Authchips . | . . . . Time . | . . . . Total Part Build Rating . | . . . . Parts Repaired . | . . . . Time . | . . . . Parts Recycled 2 | . . . 2 Recycled Matter 11 | . . . 11 Retrieved Matter . | . . . . Retrieved Components . | . . . . Parts Scanalyzed . | . . . . Part Schematics Acquired . | . . . . Parts Damaged . | . . . . Bothacking | -11 -10 -10 -9 ------------ Run | Yrd Mat Min Mat Used RIF Installer . | . . . . Robots Hacked . | . . . . Non-combat . | . . . . Combat . | . . . . Robot Hacks Applied . | . . . . Relay Couplers Released . | . . . . Fabnet Peak Effective % . | . . . . Robots Rewired . | . . . . Allies Hacked . | . . . . Hacks Repelled . | . . . . Allies | -11 -10 -10 -9 -------- Run | Yrd Mat Min Mat Total Allies . | . . . . Largest Group . | . . . . Highest-Rated Group . | . . . . Highest-Rated Ally . | . . . . Total Orders . | . . . . Ally Attacks . | . . . . Total Damage . | . . . . Kills . | . . . . Allies Corrupted . | . . . . Allies Melted . | . . . . Intel | -11 -10 -10 -9 ------- Run | Yrd Mat Min Mat Robot Analysis Total . | . . . . Derelict Logs Recovered 2 | . . 2 . Drone Launches . | . . . . Drone Recoveries . | . . . . Exploration | -11 -10 -10 -9 ------------- Run | Yrd Mat Min Mat Turns Passed 1256 | 55 174 354 673 Spaces Moved 751 | 46 102 262 341 Core 15 | 13 . . 2 Treads . | . . . . Legs 736 | 33 102 262 339 Wheels . | . . . . Hover . | . . . . Flight . | . . . . Fastest Speed 50 | 50 120 120 90 Average Speed 117 | 100 120 120 116 Slowest Speed 250 | 120 120 120 250 Overloaded Moves . | . . . . Propulsion Burnouts . | . . . . Robots Hopped . | . . . . Cave-ins Triggered . | . . . . Exploration Rate (%) 25 | 4 22 46 29 Regions Visited 3 Branch Regions 1 Pre-discovered Areas 2 | . . 2 . Known Exits Taken . | . . . . Unknown Exits Taken 3 | 1 1 1 . Scrap Searched . | . . . . Spaces Dug . | . . . . Terrain Destroyed 1 | . . . 1 Melee . | . . . . Projectile 1 | . . . 1 AOE . | . . . . Terrain Rammed . | . . . . Walls Destroyed . | . . . . Machines Disabled . | . . . . Actions | -11 -10 -10 -9 --------- Run | Yrd Mat Min Mat Total 988 | 55 129 285 519 Wait 71 | . . . 71 Move 748 | 45 101 261 341 Hop . | . . . . Pick Up 31 | 6 5 4 16 Fast Attach . | . . . . Attach 22 | 4 5 1 12 Detach 2 | . . 1 1 Swap 11 | . . 4 7 Drop 6 | . 2 3 1 Fire 96 | . 16 10 70 Melee . | . . . . Ram . | . . . . Kick 1 | . . 1 . Crush . | . . . . Escape Stasis . | . . . . Rewire . | . . . . Trap . | . . . . Miscellaneous . | . . . . Route ------- -11/Scrapyard -10/Materials -10/Mines -9/Materials History --------- Turn | Location | Event 5 | -11/Scrapyard | Discovered new exit (range 16) 56 | -11/Scrapyard | Entered Materials 172 | -10/Materials | Discovered new exit (range 16) 230 | -10/Materials | Entered Mines 323 | -10/Mines | Learned location of Zion (-7) 571 | -10/Mines | Discovered new exit (range 5) 574 | -10/Mines | Build established: Scavenger-Mutant 584 | -10/Mines | Entered Materials 584 | -9/Materials | Evolved 2 slots: Power x1, Utility x1 825 | -9/Materials | Core integrity fell below 50% 849 | -9/Materials | Lost 5 parts (2p1n1u1w) 884 | -9/Materials | Build established: Mutant 935 | -9/Materials | Lost 3 parts (2n1w) 1044 | -9/Materials | Core integrity fell below 20% 1257 | -9/Materials | Destroyed by G-34 Mercenary with Small Laser Last Messages --------------- Acquired Hvy. Assault Rifle. G-34 Mercenary destroyed. Acquired Ion Engine. Acquired 33 matter. Acquired Lgt. Armor Plating. Acquired 2 matter. Acquired 3 matter. G-34 Mercenary destroyed. Triggered Alarm Trap. An alarm sounds. ALERT: Alarm triggered, dispatching investigation squad. Acquired 44 matter. K-01 Serf cleans the Electrolysis Chamber. Electrolysis Chamber disabled. K-01 Serf cleans the Electrolysis Chamber. K-01 Serf collects debris. W-16 Scout sends out distress signal. K-01 Serf collects debris. Electrolysis Chamber disabled. Aluminum Leg destroyed. Map ----- +----------------------------------------------------+ | | | | | | | | | | | | | | | | | | | | | | | | | | | | | | | | | | | | | | | | | | | ????????????????????????#######??????????????????? | | ????????????????????????# #??????????????????? | | ????????????????????????#g""" #??????????????????? | | ??????????########??????# """ #??????????????????? | | ??????????# ########@ "" #??????????????????? | | ??????????# !! # ## Y g#??????????????????? | | ??????????# !! # ## """ ###+####???????????? | | ??????????# ! # ## """ + ????? | | ??????????# # ##g" " ## #?????????? | | ??????????# # ## #?? #?+#/#?????????? | | ??????????####+### ## #? #??????????????? | | ???????????# # ## ## ##?????????????? | | ???????????# # #####+## #?????????????? | | ???????????#### # # #?????????????? | | ??????????????# # # % # S"" ????????? | | ??????????????# + # ##### # "" ????????? | | ??????????????# # #? #???## ########????????? | | ?????????????## ####### ##???# #???###?????????? | | ????????###### ##### #####+##### ##????????? | | ######### [! # # ????????? | | # = % # + ????????? | | # ### ##### # # ????????? | | =#! ####+######## ## # ????????? | | ! + # #??#% ## """ """ # ????????? | | #[ # """ #??# ## """ """ # ????????? | | """ """ # # "T" #??#% ## """ """ # ????????? | | """ """ # # = #?## ## # "????????? | | """ """ # # #?# ####+###### "????????? | | ######### # """ #?# [ # "????????? | +----------------------------------------------------+ Best States ------------- Heat Dissipation 42 Energy Generation 23 Energy Capacity 415 Matter Stores 300 Matter Capacity 300 Sight Range 16 Robot Scan Range 14 Terrain Scan Density 10 Armor Coverage 150 Power Shielding 33 Evasion (%) 57 Item Schematics ----------------- None Robot Schematics ------------------ None Fabricated ------------ Nothing Alien Tech Used ----------------- None Achievements -------------- None Challenges ------------ None Game ------ Seed TractorDecoyPrototype Manual? 0 Play Time 00:24:28 Cumulative 3.5 hours Start 2025.03.22 @ 19:29:39 End 2025.03.28 @ 13:54:48 Sessions 3 Manual Loads 0 Difficulty Rogue Special Mode None Game No. 6 Rogue 6 Adventurer 0 Explorer 0 Win Type - Total 0 Types 0/0/0/0/0/0/0/0/0 Lore% 2 Gallery% 7 Achievement% 6 Wizard Run 0 Options --------- Layout 0 ASCII 1 Keyboard 0 Movement Mouse Keybinds 0 Fullscreen 0 Font 32/SmallcapsGlow Map View 76x50 Zoom Use 0% Tactical HUD 0 Map Filters NONE Filters NONE Steam 1 RUN: c81e8f05-e882-4ba3-9f72-a908c72cbbf5